bitfinex/quotes_ETHUSD_20220117
["timestamp","ask_amount","ask_price","bid_price","bid_amount"]
[1642378364874,0.00113685,3346.8,3346.4,2.5733078]
[1642378365077,0.00113685,3346.8,3346.4,2.2733078]
[1642378365277,0.00113685,3346.8,3346.4,3.0201578]
[1642378366778,0.00113685,3346.8,3346.7,1.12504946]
[1642378367026,0.00113685,3346.8,3346.7,5.55897914]
[1642378367224,0.00113685,3346.8,3346.7,7.39902119]
[1642378367425,0.00113685,3346.8,3346.7,5.55897914]
[1642378367623,0.00113685,3346.8,3346.7,1.45897914]
[1642378368024,0.00113685,3346.8,3346.7,10.28867539]
[1642378368233,0.00113685,3346.8,3346.7,10.58867539]
[1642378368424,0.00113685,3346.8,3346.7,10.72267539]
[1642378369025,0.00113685,3346.8,3346.7,20.27267539]
[1642378369424,0.00113685,3346.8,3346.7,10.72267539]
[1642378369824,0.00113685,3346.8,3346.7,8.89297914]
[1642378370024,0.00113685,3346.8,3346.7,9.19297914]
[1642378370225,0.00113685,3346.8,3346.7,8.89297914]
[1642378370873,0.00113685,3346.8,3346.7,15.94297914]
[1642378371470,0.00113685,3346.8,3346.7,8.89297914]
[1642378372272,0.00113685,3346.8,3346.7,10.06632311]
[1642378372874,0.00113685,3346.8,3346.7,18.86632311]
[1642378373173,0.00113685,3346.8,3346.7,18.83239343]
[1642378373379,0.00113685,3346.8,3346.7,19.83239343]
[1642378373574,0.00113685,3346.8,3346.7,20.38209343]
[1642378373775,0.00113685,3346.8,3346.7,21.12883343]
[1642378373975,1.26470452,3347.9,3346.8,19.2]
[1642378374175,2.64235931,3348.7,3346.9,4.0851254]
[1642378374440,0.00568423,3347.8,3347.0,4.78489]
[1642378374627,0.00568423,3347.8,3347.1,3.97599683]
[1642378374827,0.00511581,3347.7,3347.1,3.97599683]
[1642378375228,0.00454739,3347.6,3347.1,3.97599683]
[1642378375528,0.00397896,3347.5,3347.1,3.97599683]
[1642378375728,0.00397896,3347.5,3347.3,1.46994539]
[1642378375932,1.48685931,3349.0,3348.7,1.40516788]
[1642378376129,26.1445,3349.1,3348.2,1.86577992]
[1642378376430,26.1445,3349.1,3347.5,7.0724]
[1642378376431,0.01193689,3348.9,3348.1,0.3]
[1642378376628,0.01193689,3348.9,3348.2,1.85832821]
[1642378376828,0.01136847,3348.8,3348.2,2.40092821]
[1642378377028,0.01136847,3348.8,3348.2,0.5426]
[1642378377328,0.01080005,3348.7,3348.6,1.18372781]
[1642378377529,0.01080005,3348.7,3348.6,1.48372781]
[1642378377730,0.01080005,3348.7,3348.6,4.16564137]
[1642378377931,0.01080005,3348.7,3348.6,4.12882887]
[1642378378181,0.01080005,3348.7,3348.6,2.26032781]
[1642378378782,0.01080005,3348.7,3348.6,1.48372781]
[1642378379780,0.01080005,3348.7,3348.4,0.3]
[1642378379979,0.01080005,3348.7,3348.3,0.734]
[1642378380179,0.01023162,3348.6,3348.3,0.734]
[1642378380380,0.01023162,3348.6,3348.3,0.3]
[1642378380579,7.504,3349.1,3348.0,4.08309997]
[1642378380580,0.0096632,3348.5,3348.0,4.08309997]
[1642378381084,0.00909478,3348.4,3348.0,4.08309997]
[1642378381480,0.00852635,3348.3,3348.0,5.86616261]
[1642378381680,0.00852635,3348.3,3348.0,5.843643]
[1642378381942,0.00795793,3348.2,3348.0,5.843643]
[1642378382130,0.00795793,3348.2,3348.1,9.47665198]
[1642378382330,0.74666,3349.0,3348.1,9.47665198]
[1642378382530,0.74666,3349.0,3348.0,4.08309997]
[1642378382732,0.74671,3348.8,3348.0,4.08309997]
[1642378382935,1.95919689,3348.7,3348.0,4.08309997]
[1642378383233,1.95919689,3348.7,3348.0,3.78309997]
[1642378383234,0.01023162,3348.6,3348.0,3.78309997]
[1642378383434,0.01023162,3348.6,3348.0,3.6449]
[1642378383738,0.7564632,3348.5,3348.0,3.6449]
[1642378383932,2.07594086,3348.4,3348.0,3.6449]
[1642378384134,3.2139415,3348.4,3347.2,1.35009614]
[1642378384334,0.00852635,3348.3,3347.2,1.30009614]
[1642378384534,0.00852635,3348.3,3347.2,1.63568568]
[1642378384733,0.00795793,3348.2,3347.2,1.63568568]
[1642378385135,0.0073895,3348.1,3347.2,1.93568568]
[1642378385537,0.00682108,3348.0,3347.3,1.26237561]
[1642378385776,0.00682108,3348.0,3347.3,1.2963842]
[1642378385975,0.00625266,3347.9,3347.3,1.2963842]
[1642378386381,0.00568423,3347.8,3347.3,1.26237561]
[1642378386776,0.00511581,3347.7,3347.3,1.26237561]
[1642378387176,0.00454739,3347.6,3347.3,1.26237561]
[1642378387378,0.00454739,3347.6,3346.8,11.2860425]
[1642378387577,0.00397896,3347.5,3346.8,11.2535]
[1642378387779,0.00397896,3347.5,3347.0,1.24891403]
[1642378387978,1.40146803,3347.7,3347.0,1.24891403]
[1642378387979,0.00341054,3347.4,3347.0,1.24891403]
[1642378388278,0.00284212,3347.3,3347.0,1.58860782]
[1642378388679,0.00227369,3347.2,3347.0,1.88860782]
[1642378388981,17.47,3348.1,3347.0,1.88860782]
[1642378388982,0.00170527,3347.1,3347.0,1.88860782]
[1642378389435,0.00682108,3347.1,3347.0,1.88860782]
[1642378389823,0.00682108,3347.1,3347.0,18.48860782]
[1642378390025,0.00682108,3347.1,3347.0,19.48860782]
[1642378390824,0.00682108,3347.1,3347.0,22.47260782]
[1642378391829,26.46085931,3348.8,3347.1,19.15]
[1642378391830,8.99085931,3348.8,3347.1,19.15]
[1642378392027,7.504,3348.8,3347.5,1.04655]
[1642378392227,0.00397897,3348.7,3347.6,0.434]
[1642378392425,0.00397897,3348.7,3347.6,0.77189944]
[1642378392626,0.00341054,3348.6,3347.7,0.30170527]
[1642378392827,0.00341054,3348.6,3347.8,0.434]
[1642378393028,0.00284212,3348.5,3348.4,1.32828345]
[1642378393280,0.00284212,3348.5,3348.4,1.66531189]
[1642378393675,0.00284212,3348.5,3348.4,8.81531189]
[1642378394075,0.00284212,3348.5,3348.4,9.81531189]
[1642378394677,0.00284212,3348.5,3348.4,23.24144189]
[1642378396078,0.00284212,3348.5,3348.4,22.94564189]
[1642378397630,7.504,3348.8,3348.5,19.1]
[1642378397832,7.504,3348.8,3348.6,0.434]
[1642378398031,0.00113685,3348.7,3348.6,1.77249632]
[1642378398230,7.504,3348.8,3348.7,19.1]
[1642378398430,1.48685931,3350.5,3348.8,19.15]
[1642378398635,3.16539076,3350.6,3349.3,0.25055361]
[1642378398832,3.16539076,3350.6,3350.5,0.03925971]
[1642378399044,3.16539076,3350.6,3350.0,1.20537078]
[1642378399231,3.1761908,3350.6,3350.0,1.24335118]
[1642378399536,3.1761908,3350.6,3350.0,1.54335118]
[1642378399731,1.08214378,3350.6,3350.0,1.97735118]
[1642378400031,0.59574378,3350.6,3350.1,0.00275132]
[1642378400230,0.59574378,3350.6,3350.2,0.434]
[1642378400436,0.59574378,3350.6,3350.2,0.76917615]
[1642378400677,0.59574378,3350.6,3350.3,1.52987054]
[1642378400875,0.59574378,3350.6,3350.5,0.74595]
[1642378401076,0.59574378,3350.6,3350.5,0.78462184]
[1642378401274,0.59574378,3350.6,3350.5,1.08462184]
[1642378401476,1.49061979,3351.1,3350.5,1.08462184]
[1642378401477,1.49061979,3351.1,3350.8,0.05833546]
[1642378401676,2.23028896,3351.4,3350.9,0.434]
[1642378401878,3.74660985,3352.1,3351.2,0.05092895]
[1642378402080,0.777,3351.6,3351.4,0.03366912]
[1642378402289,0.777,3352.3,3351.6,0.05059562]
[1642378402475,0.777,3352.3,3351.7,0.434]
[1642378402676,0.00284212,3352.0,3351.8,0.01859753]
[1642378402880,0.00284212,3352.0,3351.7,0.434]
[1642378403077,0.0022737,3351.9,3351.7,0.46999191]
[1642378403478,0.777,3352.3,3351.7,0.46999191]
[1642378403479,0.00170527,3351.8,3351.7,0.46999191]
[1642378403676,0.00170527,3351.8,3351.7,3.46999191]
[1642378404078,0.00170527,3351.8,3351.7,4.46999191]
[1642378404278,0.00170527,3351.8,3351.7,3.46999191]
[1642378404551,0.00170527,3351.8,3351.7,3.03599191]
[1642378404745,0.77870527,3351.8,3351.7,3.03599191]
[1642378404939,2.82239459,3351.8,3351.7,3.0]
[1642378405138,12.37051163,3351.8,3351.7,2.9206]
[1642378405339,16.56265973,3351.8,3351.7,2.5073]
[1642378405539,38.53265973,3351.8,3351.7,2.0607]
[1642378405739,34.03265973,3351.8,3351.7,2.0607]
[1642378406238,15.1,3351.7,3350.9,0.03617797]
[1642378406439,2.13101604,3351.6,3350.3,0.03291777]
[1642378406739,2.13101604,3351.6,3350.4,0.00625266]
[1642378407138,0.00113685,3351.7,3351.0,1.31852668]
[1642378407538,0.77813685,3351.7,3351.1,0.00227369]
[1642378409979,0.77813685,3351.7,3351.1,0.30227369]
[1642378410174,1.55513685,3351.7,3350.8,0.00397896]
[1642378410378,1.55513685,3351.7,3351.2,0.00170527]
[1642378410676,1.55513685,3351.7,3351.2,1.41851809]
[1642378410877,1.55513685,3351.7,3351.4,1.14850644]
[1642378411077,1.55513685,3351.7,3351.4,1.18194555]
[1642378411277,1.55513685,3351.7,3351.4,1.48194555]
[1642378411777,1.55513685,3351.7,3351.3,0.30113684]
[1642378412024,1.55513685,3351.7,3351.3,0.00113684]
[1642378412826,2.33213685,3351.7,3350.9,0.00341054]
[1642378413024,2.33213685,3351.7,3350.8,0.00397896]
[1642378413225,2.33213685,3351.7,3350.8,1.40500717]
[1642378413425,2.33213685,3351.7,3351.3,3.03936651]
[1642378413925,2.33213685,3351.7,3351.3,3.33936651]
[1642378415429,3.10913685,3351.7,3351.3,3.03936651]
[1642378417175,3.10913685,3351.7,3351.3,3.0]
[1642378417176,2.005939,3351.6,3351.3,3.0]
[1642378417375,2.005939,3351.6,3350.9,0.00341054]
[1642378417376,0.75792033,3351.4,3350.9,0.00341054]
[1642378417576,17.47,3351.3,3350.9,0.00341054]
[1642378417778,17.47,3351.3,3350.1,0.00795793]
[1642378417975,17.47608512,3351.0,3350.1,0.00795793]
[1642378418175,17.47,3351.0,3349.5,0.01136847]
[1642378418375,1.42563951,3350.1,3349.4,0.01193689]
[1642378418575,1.42563951,3350.1,3349.3,0.01250531]
[1642378418974,0.0056588,3350.0,3349.3,0.01250531]
[1642378419631,1.42563951,3350.1,3349.4,1.4585149]
[1642378420027,1.42563951,3350.1,3349.5,0.01136847]
[1642378420429,0.74629,3350.5,3349.5,0.01136847]
[1642378421527,3.32100029,3350.6,3349.5,0.01136847]
[1642378421728,1.1454,3350.7,3349.9,1.31648346]
[1642378421928,1.1454,3350.7,3350.0,0.03392145]
[1642378422127,0.74612,3351.3,3350.0,0.00852635]
[1642378422330,0.74612,3351.3,3350.1,0.00795793]
[1642378422626,5.19859054,3351.2,3350.4,1.4664224]
[1642378423031,1.23919054,3351.2,3350.5,0.00568423]
[1642378423881,1.23919054,3351.2,3350.6,0.02076858]
[1642378424381,1.23919054,3351.2,3350.7,0.00454739]
[1642378424580,1.23919054,3351.2,3350.8,0.01691236]
[1642378424782,1.23919054,3351.2,3350.6,0.00511581]
[1642378424982,1.23919054,3351.2,3350.9,0.00341054]
[1642378425184,1.23919054,3351.2,3350.5,0.00568423]
[1642378425383,3.18725701,3351.2,3350.5,0.00568423]
[1642378425590,3.1849623,3351.2,3350.5,0.00568423]
[1642378426086,1.23919054,3351.2,3350.5,0.00568423]
[1642378427825,1.23919054,3351.2,3350.0,0.00852635]
[1642378428326,1.23919054,3351.2,3350.5,1.19496499]
[1642378428527,1.23919054,3351.2,3350.6,0.03791997]
[1642378428725,1.23919054,3351.2,3350.6,0.00511581]
[1642378428925,1.23919054,3351.2,3350.7,0.00454739]
[1642378429126,1.23919054,3351.2,3350.6,0.00511581]
[1642378432575,1.23919054,3351.2,3350.7,0.03191275]
[1642378432774,1.23919054,3351.2,3350.6,0.00511581]
[1642378432974,1.23919054,3351.2,3350.8,0.00397896]
[1642378433175,0.777,3351.5,3350.7,0.01992806]
[1642378433382,0.777,3351.5,3350.7,0.26962806]
[1642378433383,1.554,3351.5,3350.7,0.26962806]
[1642378433577,1.554,3351.5,3350.8,0.4743915]
[1642378433776,1.554,3351.5,3350.8,0.7743915]
[1642378433978,1.554,3351.5,3351.0,0.05267587]
[1642378434176,1.554,3351.5,3351.4,14.69352753]
[1642378434431,1.554,3351.5,3351.4,8.16572753]
[1642378434627,1.554,3351.5,3351.4,9.16572753]
[1642378435226,3.10913685,3351.7,3351.5,10.7312822]
[1642378435426,3.10913685,3351.7,3351.6,1.84307755]
[1642378435626,3.10913685,3351.7,3351.6,3.17461855]
[1642378435827,3.10913685,3351.7,3351.6,2.17461855]
[1642378436031,3.10913685,3351.7,3351.6,3.17461855]
[1642378436032,3.88613685,3351.7,3351.6,3.17461855]
[1642378436227,3.88613685,3351.7,3351.6,2.17461855]
[1642378436425,3.88613685,3351.7,3351.6,3.17461855]
[1642378436626,3.885,3351.7,3351.6,0.765541]
[1642378436826,3.885,3351.7,3351.6,1.765541]
[1642378437030,3.885,3351.7,3351.6,0.765541]
[1642378438028,3.885,3351.7,3351.6,0.434]
[1642378438700,4.662,3351.7,3351.6,0.434]
[1642378439098,4.662,3351.7,3351.6,2.52341226]
[1642378439291,4.662,3351.7,3351.6,2.55823935]
[1642378439893,4.662,3351.7,3351.6,0.3]
[1642378440292,4.662,3351.7,3351.1,0.00227369]
[1642378440890,4.662,3351.7,3351.1,0.03872171]
[1642378441091,4.662,3351.7,3351.1,0.00227369]
[1642378441294,4.662,3351.7,3351.2,0.00170527]
[1642378441295,5.439,3351.7,3351.2,0.00170527]
[1642378441494,5.439,3351.7,3351.1,2.21714854]
[1642378441792,5.439,3351.7,3351.2,0.43570527]
[1642378442034,5.439,3351.7,3351.2,0.73570527]
[1642378442232,5.439,3351.7,3351.3,0.00113684]
[1642378442433,5.439,3351.7,3351.5,1.19823541]
[1642378442633,5.439,3351.7,3351.5,1.5338846]
[1642378442835,5.439,3351.7,3351.5,0.63564919]
[1642378443135,5.439,3351.7,3351.6,2.77088444]
[1642378443335,5.439,3351.7,3351.6,2.80519996]
[1642378443636,5.439,3351.7,3351.6,4.10519996]
[1642378443841,6.216,3351.7,3351.6,3.07088444]
[1642378444034,6.216,3351.7,3351.6,2.77088444]
[1642378444235,6.216,3351.7,3351.6,3.07088444]
[1642378444438,6.216,3351.7,3351.6,4.07088444]
[1642378446577,6.993,3351.7,3351.6,7.30702838]
[1642378446978,1.02876,3351.7,3351.6,17.35702838]
[1642378447577,1.02876,3351.7,3351.6,7.30702838]
[1642378448480,1.02876,3351.7,3351.6,7.25702838]
[1642378449080,1.02876,3351.7,3351.6,12.85702838]
[1642378449279,1.02876,3351.7,3351.6,7.25702838]
[1642378449280,1.80576,3351.7,3351.6,7.25702838]
[1642378451631,0.777,3351.8,3351.6,24.85702838]
[1642378452030,1.554,3351.8,3351.7,20.0]
[1642378452228,3.885,3352.4,3351.9,0.7455]
[1642378452431,3.885,3352.4,3352.0,0.434]
[1642378452632,3.885,3352.4,3352.1,1.491]
[1642378452834,3.885,3352.4,3352.2,1.67202438]
[1642378453032,3.885,3352.4,3352.2,1.97202438]
[1642378453284,0.78154739,3352.3,3352.2,2.97202438]
[1642378453882,0.78154739,3352.3,3352.2,5.47487868]
[1642378454684,1.55854739,3352.3,3352.2,3.00399424]
[1642378455684,1.55854739,3352.3,3352.2,1.76596986]
[1642378457528,2.33554739,3352.3,3352.2,0.76596986]
[1642378459630,2.33554739,3352.3,3352.2,1.51145986]
[1642378459828,3.885,3352.4,3352.2,16.61145986]
[1642378460128,0.777,3352.3,3352.2,16.61145986]
[1642378460677,0.777,3352.3,3352.2,20.46316649]
[1642378462783,1.554,3352.3,3352.2,20.46316649]
[1642378463381,1.554,3352.3,3352.2,6.36316649]
[1642378464927,1.554,3352.3,3352.2,4.3166139]
[1642378465125,1.554,3352.3,3352.2,7.2166139]
[1642378465326,2.331,3352.3,3352.2,7.2166139]
[1642378465726,2.331,3352.3,3352.2,7.9621639]
[1642378466427,2.331,3352.3,3352.2,5.4507139]
[1642378466825,8.881,3352.3,3352.2,5.4507139]
[1642378467030,8.881,3352.3,3351.3,0.00113684]
[1642378467031,11.0,3352.2,3351.3,0.00113684]
[1642378467425,11.0,3352.2,3351.3,0.00568423]
[1642378467626,1.1320849,3351.8,3351.3,0.00568423]
[1642378468027,1.9090849,3351.8,3351.3,0.75142423]
[1642378468285,1.9090849,3351.8,3351.0,1.53380055]
[1642378468482,1.9090849,3351.8,3351.4,0.00511581]
[1642378468684,1.9090849,3351.8,3351.1,0.00682108]
[1642378469481,1.9090849,3351.8,3351.1,0.30682108]
[1642378469880,1.9090849,3351.8,3351.2,0.00625266]
[1642378470680,2.6860849,3351.8,3351.2,0.00625266]
[1642378470980,2.6860849,3351.8,3350.8,0.4296487]
[1642378470981,1.90924499,3351.7,3350.8,0.4296487]
[1642378471182,0.00772073,3351.6,3350.4,3.25684454]
[1642378471381,1.91208711,3351.7,3350.9,0.00170527]
[1642378471580,0.00888342,3351.5,3350.6,1.50296197]
[1642378471782,2.28674159,3351.5,3350.7,0.00113685]
[1642378472032,1.24491658,3350.8,3350.7,0.00113685]
[1642378472630,1.24491658,3350.8,3350.5,0.00227369]
[1642378472932,1.90300375,3351.2,3350.5,0.00227369]
[1642378473131,1.14844212,3351.4,3350.5,0.01938865]
[1642378473331,0.00113685,3351.1,3350.5,0.00227369]
[1642378473534,0.0022737,3351.3,3350.6,0.00170527]
[1642378473731,0.0022737,3351.3,3350.5,0.00227369]
[1642378473931,0.00170527,3351.2,3350.5,0.00227369]
[1642378474131,1.35671713,3351.1,3350.5,0.00227369]
[1642378474331,1.35671713,3351.1,3350.5,2.90227369]
[1642378474332,1.35785398,3351.1,3350.5,2.90227369]
[1642378474534,1.35785398,3351.1,3350.5,3.23037161]
[1642378474735,1.35785398,3351.1,3350.6,0.00170527]
[1642378475978,1.35785398,3351.1,3350.4,0.04040206]
[1642378476177,0.00113685,3351.1,3350.5,1.1871973]
[1642378476377,0.00113685,3351.1,3350.5,1.22303899]
[1642378476578,0.00113685,3351.1,3350.6,0.00170527]
[1642378479629,0.00113685,3351.1,3350.7,0.02977793]
[1642378480029,0.00113685,3351.1,3350.6,0.00170527]
[1642378482634,2.17592793,3351.1,3350.6,0.00170527]
[1642378483035,2.17592793,3351.1,3350.5,0.00227369]
[1642378484176,2.17592793,3351.1,3350.2,0.00397896]
[1642378486383,1.15833091,3350.6,3350.2,0.00397896]
[1642378487529,1.15833091,3350.6,3350.4,0.03998509]
[1642378487732,1.15833091,3350.6,3350.4,0.07416328]
[1642378487932,2.17592793,3351.1,3350.6,0.04554562]
[1642378488332,0.00113685,3351.1,3350.6,0.04554562]
[1642378488530,0.00113685,3351.1,3350.5,2.88978653]
[1642378488731,0.00113685,3351.1,3350.5,3.18978653]
[1642378488931,0.00113685,3351.1,3350.6,0.00170527]
[1642378489131,0.00113685,3351.1,3350.7,2.55190461]
[1642378489532,0.00113685,3351.1,3350.7,2.88891069]
[1642378489932,0.00113685,3351.1,3350.7,3.18891069]
[1642378490140,0.00113685,3351.1,3350.7,0.33700608]
[1642378490335,0.00113685,3351.1,3350.8,0.3]
[1642378490532,2.58838189,3351.4,3350.8,0.3]
[1642378490782,1.12634746,3351.4,3351.0,1.2898515]
[1642378490982,0.00113685,3351.3,3351.0,1.8898515]
[1642378491188,0.00113685,3351.3,3351.0,0.63486348]
[1642378491485,0.00341054,3351.7,3351.1,0.3]
[1642378491883,0.00284212,3351.6,3350.9,0.30113685]
[1642378492084,1.14882028,3351.4,3350.9,0.00113685]
[1642378492489,1.14882028,3351.4,3351.2,2.55190461]
[1642378492686,0.00227369,3351.5,3351.2,2.58970056]
[1642378492989,2.331,3351.8,3351.2,3.18970056]
[1642378492990,0.00170527,3351.4,3351.2,3.18970056]
[1642378493385,0.00341054,3351.7,3351.2,3.18970056]
[1642378493587,0.00341054,3351.7,3351.2,0.63779595]
[1642378493887,0.00341054,3351.7,3351.4,1.18686737]
[1642378493888,0.00284212,3351.6,3351.4,1.18686737]
[1642378494088,0.00284212,3351.6,3351.4,1.82024953]
[1642378494457,0.777,3351.7,3351.5,0.03061231]
[1642378494846,0.00284212,3351.6,3351.5,0.03061231]
[1642378495743,0.00284212,3351.6,3351.5,2.58251692]
[1642378496145,0.00284212,3351.6,3351.5,3.58251692]
[1642378496546,0.77984212,3351.6,3351.5,3.58251692]
[1642378497045,0.77984212,3351.6,3351.5,2.58251692]
[1642378499282,1.55684212,3351.6,3351.5,2.58251692]
[1642378500082,1.55684212,3351.6,3351.5,3.58251692]
[1642378500281,1.55684212,3351.6,3351.5,4.01651692]
[1642378500581,1.55684212,3351.6,3351.5,9.51651692]
[1642378500785,1.55684212,3351.6,3351.5,4.01651692]
[1642378501783,1.55684212,3351.6,3351.5,3.01651692]
[1642378502039,1.55684212,3351.6,3351.5,2.96651692]
[1642378502040,2.33384212,3351.6,3351.5,2.96651692]
[1642378502234,2.33384212,3351.6,3351.5,3.00132004]
[1642378502836,2.33384212,3351.6,3351.5,2.56732004]
[1642378503035,2.33384212,3351.6,3351.5,2.86732004]
[1642378503635,2.33384212,3351.6,3351.5,3.13251692]
[1642378504637,3.11084212,3351.6,3351.5,3.13251692]
[1642378505438,3.11084212,3351.6,3351.5,2.83251692]
[1642378506984,5.00018381,3351.6,3351.5,2.83251692]
[1642378507183,3.88784212,3351.6,3351.5,2.83251692]
[1642378507984,3.88784212,3351.6,3351.5,3.13251692]
[1642378508788,3.88784212,3351.6,3351.5,4.28088929]
[1642378508984,3.88784212,3351.6,3351.5,5.28088929]
[1642378509435,3.88784212,3351.6,3351.5,6.72737122]
[1642378509636,3.88784212,3351.6,3351.5,6.99419315]
[1642378510037,4.66484212,3351.6,3351.5,6.99419315]
[1642378511341,4.66484212,3351.6,3351.5,6.24853315]
[1642378511738,4.66484212,3351.6,3351.5,5.10016078]
[1642378512540,5.44184212,3351.6,3351.5,5.10016078]
[1642378515282,6.21884212,3351.6,3351.5,5.10016078]
[1642378515684,6.21884212,3351.6,3351.5,6.39694302]
[1642378516083,6.21884212,3351.6,3351.5,5.10016078]
[1642378518135,6.99584212,3351.6,3351.5,5.10016078]
[1642378519636,6.99584212,3351.6,3351.5,3.50016078]
[1642378520695,7.77284212,3351.6,3351.5,3.50016078]
[1642378521084,7.77284212,3351.6,3351.5,4.10016078]
[1642378522888,7.77284212,3351.6,3351.5,3.80016078]
[1642378523088,7.77284212,3351.6,3351.5,3.06616078]
[1642378523289,8.54984212,3351.6,3351.5,3.06616078]
[1642378524440,8.54984212,3351.6,3351.5,3.36616078]
[1642378524637,8.54984212,3351.6,3351.5,3.06616078]
[1642378524839,8.547,3351.6,3351.5,3.06616078]
[1642378525239,15.347,3351.6,3351.5,0.94854833]
[1642378525437,8.547,3351.6,3351.5,0.94854833]
[1642378526039,9.324,3351.6,3351.5,0.94854833]
[1642378526237,15.374,3351.6,3351.5,0.94854833]
[1642378527144,0.02248901,3351.4,3350.7,1.50296197]
[1642378527340,2.02248901,3351.4,3350.7,1.50296197]
[1642378527638,16.00227369,3351.5,3350.8,0.00170527]
[1642378528037,1.27196038,3351.0,3350.7,0.0022737]
[1642378528300,18.9,3350.8,3350.3,2.25684454]
[1642378528495,2.0,3350.7,3350.3,2.25684454]
[1642378528691,1.0,3350.7,3350.4,0.00170527]
[1642378529092,2.1343,3350.7,3350.4,0.00170527]
[1642378529291,2.1343,3350.7,3349.8,4.454e-05]
[1642378529292,18.98483533,3350.6,3349.9,0.00454738]
[1642378529494,19.73118533,3350.6,3349.9,0.00454738]
[1642378530093,1.50359189,3350.0,3349.9,0.00454738]
[1642378530291,1.1343,3350.7,3349.7,0.02954633]
[1642378530491,1.1343,3350.7,3349.6,7.00540578]
[1642378530694,0.00397896,3350.6,3349.6,0.3]
[1642378530893,0.00397896,3350.6,3349.7,0.00113685]
[1642378531194,0.00341054,3350.5,3349.7,0.00113685]
[1642378531593,0.00284211,3350.4,3349.4,0.00284212]
[1642378531793,0.00284211,3350.4,3349.9,1.54467804]
[1642378532040,0.00227369,3350.3,3349.9,1.54467804]
[1642378532439,0.00170527,3350.2,3349.9,1.54467804]
[1642378532841,0.00113684,3350.1,3349.9,1.54467804]
[1642378533246,0.00397896,3350.6,3349.5,1.42656392]
[1642378533741,0.00341054,3350.5,3349.6,0.00170527]
[1642378534142,0.00284211,3350.4,3349.6,0.00170527]
[1642378534442,0.00397896,3350.3,3349.3,0.434]
[1642378534847,0.00341054,3350.2,3349.4,0.00113685]
[1642378535243,1.38469961,3350.0,3349.4,0.00113685]
[1642378535443,1.38469961,3350.0,3349.3,0.00170527]
[1642378535704,0.00170527,3349.9,3349.3,0.00170527]
[1642378536093,0.00113684,3349.8,3349.3,0.30170527]
[1642378536293,0.00113684,3349.8,3349.3,0.00170527]
[1642378536493,0.00170527,3349.9,3349.3,0.00170527]
[1642378536892,0.00113684,3349.8,3349.3,0.00170527]
[1642378537292,0.00568423,3350.6,3349.3,0.00170527]
[1642378537495,1.48795452,3350.2,3349.4,0.0207549]
[1642378537692,1.48795452,3350.2,3349.3,0.00170527]
[1642378537892,0.00284211,3350.1,3349.3,0.00170527]
[1642378538092,0.00284211,3350.1,3349.3,0.30170527]
[1642378538291,0.00227369,3350.0,3349.3,0.30170527]
[1642378538695,0.00170527,3349.9,3349.3,0.30170527]
[1642378539094,0.00113684,3349.8,3349.3,0.30170527]
[1642378539543,0.00284211,3350.1,3349.3,0.30170527]
[1642378539943,0.00227369,3350.0,3349.3,0.30170527]
[1642378540149,0.00227369,3350.0,3349.4,0.02242998]
[1642378540343,1.48795452,3350.2,3349.3,0.30170527]
[1642378540344,0.00170527,3349.9,3349.3,0.30170527]
[1642378540743,0.00113684,3349.8,3349.3,0.30170527]
[1642378541147,1.48795452,3350.2,3349.3,0.30170527]
[1642378541148,0.00284211,3350.1,3349.3,0.30170527]
[1642378541545,0.00227369,3350.0,3349.4,0.74617]
[1642378542043,0.00170527,3349.9,3349.4,2.80630904]
[1642378542445,0.00113684,3349.8,3349.4,2.80630904]
[1642378542756,1.44768222,3350.5,3349.4,2.39033161]
[1642378542944,1.44768222,3350.5,3349.4,4.14271945]
[1642378543197,0.00454738,3350.4,3349.4,4.14271945]
[1642378543400,0.00454738,3350.4,3349.4,1.04617]
[1642378543596,0.00397896,3350.3,3349.4,0.3]
[1642378543796,0.00397896,3350.3,3349.3,0.60170527]
[1642378544095,0.00341054,3350.2,3349.3,0.60170527]
[1642378544397,0.00284211,3350.1,3349.3,0.60170527]
[1642378544796,0.00227369,3350.0,3349.3,0.60170527]
[1642378545204,0.00170527,3349.9,3349.3,0.60170527]
[1642378545598,0.00113684,3349.8,3349.4,1.82354703]
[1642378545798,0.00113684,3349.8,3349.4,1.79629629]
[1642378546000,0.00454738,3350.4,3349.4,2.54245629]
[1642378546200,0.00454738,3350.4,3349.5,0.02992179]
[1642378546400,0.00397896,3350.3,3349.6,0.434]
[1642378546801,0.00341054,3350.2,3349.6,0.434]
[1642378547239,0.00284211,3350.1,3349.7,2.55199203]
[1642378547642,0.00227369,3350.0,3349.7,3.15199203]
[1642378548045,0.00170527,3349.9,3349.7,3.15199203]
[1642378548443,0.00113684,3349.8,3349.7,3.15199203]
[1642378548842,0.00511581,3349.8,3349.7,3.15199203]
[1642378550801,0.00511581,3349.8,3349.2,1.68301706]
[1642378550802,1.4923243,3349.7,3349.2,1.68301706]
[1642378551096,0.00170527,3349.6,3349.2,0.434]
[1642378551602,1.492446,3349.4,3349.2,0.434]
[1642378553597,0.00170527,3349.6,3349.2,0.434]
[1642378553799,0.00170527,3349.6,3349.3,1.8045806]
[1642378553999,0.00113684,3349.5,3349.3,1.8045806]
[1642378554463,0.00227369,3349.7,3349.3,1.8045806]
[1642378554654,0.00227369,3349.7,3349.2,0.734]
[1642378554853,0.00170527,3349.6,3349.2,0.734]
[1642378555053,0.00170527,3349.6,3349.2,1.734]
[1642378555253,0.00113684,3349.5,3349.2,1.734]
[1642378555653,0.00227369,3349.7,3349.2,0.734]
[1642378556058,0.00170527,3349.6,3349.2,0.734]
[1642378556254,0.00170527,3349.6,3349.2,0.434]
[1642378556557,0.00113684,3349.5,3348.9,0.44528696]
[1642378556757,0.00113684,3349.5,3348.8,1.51908742]
[1642378556953,0.00113684,3349.5,3349.0,0.00170527]
[1642378557155,0.00113684,3349.5,3348.8,1.51908742]
[1642378557156,16.4,3349.4,3348.8,1.51908742]
[1642378557354,0.00439723,3349.2,3348.8,1.51908742]
[1642378557554,2.04276287,3349.0,3348.5,5.94578717]
[1642378557754,2.37524206,3349.0,3348.5,5.94578717]
[1642378557955,2.37524206,3349.0,3348.6,0.0022737]
[1642378558589,1.07908289,3349.0,3348.6,0.0022737]
[1642378558986,1.07908289,3349.0,3348.2,0.00454739]
[1642378560088,1.0466037,3349.0,3348.2,0.00454739]
[1642378560488,1.0466037,3349.0,3348.1,0.00511582]
[1642378560689,0.7466037,3349.0,3348.1,1.13044801]
[1642378560898,1.1623,3349.2,3348.2,2.04468362]
[1642378561092,1.1623,3349.2,3348.8,1.14989615]
[1642378561295,0.00170527,3349.3,3348.8,1.58389615]
[1642378561491,0.00170527,3349.3,3348.9,0.74627]
[1642378561690,0.00113684,3349.2,3348.9,0.74627]